fUST/lending_fUST_20260201
["ID","MTS","AMOUNT","RATE_DAILY","PERIOD"]
[404167198,1769894290940,-300.0,0.00014096,2]
[404167199,1769894290972,-300.0,0.00014096,2]
[404167200,1769894291005,-300.0,0.00014096,2]
[404167201,1769894291035,-300.0,0.00014096,2]
[404167202,1769894291064,-300.0,0.00014096,2]
[404167203,1769894291094,-300.0,0.00014096,2]
[404167204,1769894291123,-300.0,0.00014096,2]
[404167205,1769894291152,-300.0,0.00014096,2]
[404167206,1769894291182,-300.0,0.00014096,2]
[404167207,1769894291212,-300.0,0.00014096,2]
[404167208,1769894343658,500.57921653,0.00013273,2]
[404167209,1769894406867,500.0,0.00013273,2]
[404167210,1769894408602,168.0,0.00024939,120]
[404167211,1769894410270,168.0,0.00026186,120]
[404167212,1769894411626,168.0,0.00027495,120]
[404167213,1769894412951,168.0,0.0002887,120]
[404167214,1769894434338,165.0,0.00024942,120]
[404167215,1769894435665,165.0,0.00026189,120]
[404167216,1769894436962,165.0,0.00027499,120]
[404167217,1769894438255,165.0,0.00028874,120]
[404167218,1769894470047,-500.0,0.00013699,2]
[404167219,1769894470076,-250.74447227,0.00013699,2]
[404167220,1769894470107,-462.33239421,0.00013699,2]
[404167221,1769894470135,-303.74722469,0.00013699,2]
[404167222,1769894470164,-1000.0,0.00013821,2]
[404167223,1769894479355,-6899.07030907,0.00013996,2]
[404167224,1769894526000,500.0,0.00013273,2]
[404167225,1769894543618,-617.4483716,0.00013562,2]
[404167226,1769894543652,-236.43384519,0.0001363,2]
[404167227,1769894543683,-500.0,0.00013699,2]
[404167228,1769894543717,-500.0,0.00013699,2]
[404167229,1769894543755,-500.0,0.00013699,2]
[404167230,1769894543787,-1000.0,0.00013821,2]
[404167231,1769894543822,-300.0,0.00013995,2]
[404167232,1769894544046,-2192.24556642,0.00013996,2]
[404167233,1769894554262,-10000.01,0.00013996,2]
[404167234,1769894577708,-5000.0,0.00013855,2]
[404167235,1769894577746,-0.01,0.00013995,2]
[404167236,1769894585816,-507.38773452,0.00013699,2]
[404167237,1769894585851,-296.80065262,0.00013995,2]
[404167238,1769894585881,-172.37236928,0.00013995,2]
[404167239,1769894585911,-300.0,0.00013995,2]
[404167240,1769894585988,-7446.88848716,0.00013996,2]
[404167241,1769894595316,-500.0,0.00013273,2]
[404167242,1769894595347,-1000.0,0.00013821,2]
[404167243,1769894595378,-2000.01,0.00013856,2]
[404167244,1769894595438,-2999.99,0.00013856,2]
[404167245,1769894601874,227.39525532,0.00013273,2]
[404167246,1769894601916,500.0,0.00013699,2]
[404167247,1769894602109,500.0,0.00013273,2]
[404167248,1769894602189,1000.0,0.00013821,2]
[404167249,1769894615305,5000.0,0.00013996,2]
[404167250,1769894633516,2772.61474468,0.00013911,2]
[404167251,1769894633541,6825.85922702,0.00013911,2]
[404167252,1769894642488,300.0,0.00013995,2]
[404167253,1769894644753,500.0,0.00013273,2]
[404167254,1769894644866,1000.0,0.00013821,2]
[404167255,1769894646582,172.01553125,0.00013699,2]
[404167256,1769894652911,500.0,0.00013699,2]
[404167257,1769894659291,702.13524173,0.00013996,2]
[404167258,1769894659315,4297.86475827,0.00013996,2]
[404167259,1769894681975,5000.0,0.00013996,2]
[404167260,1769894702367,300.0,0.00013995,2]
[404167261,1769894703733,179.0,0.00013995,2]
[404167262,1769894703891,223.14524173,0.00013699,2]
[404167263,1769894703916,277.50622309,0.00013699,2]
[404167264,1769894704173,500.74038109,0.00013699,2]
[404167265,1769894704254,5000.0,0.00013996,2]
[404167266,1769894704495,613.5354249,0.00013699,2]
[404167267,1769894710638,500.0,0.00013273,2]
[404167268,1769894710688,1000.0,0.00013821,2]
[404167269,1769894714133,444.22626758,0.00013273,2]
[404167270,1769894715879,536.79688552,0.00013699,2]
[404167271,1769894718229,158.98237416,0.00013699,2]
[404167272,1769894719761,174.00431457,0.00013699,2]
[404167273,1769894722096,500.0,0.00013699,2]
[404167274,1769894722549,294.21812909,0.00013699,2]
[404167275,1769894722575,205.78187091,0.00013699,2]
[404167276,1769894723045,500.71917519,0.00013699,2]
[404167277,1769894724126,500.0,0.00013273,2]
[404167278,1769894726417,5000.0,0.00013996,2]
[404167279,1769894734063,2575.17519942,0.00013996,2]
[404167280,1769894750527,1218.33375448,0.00013996,2]
[404167281,1769894750553,3781.66624552,0.00013996,2]
[404167282,1769894758995,-6218.34375448,0.00013996,2]
[404167283,1769894764898,-500.0,0.00013699,2]
[404167284,1769894764933,-300.0,0.00013995,2]
[404167285,1769894764988,-8400.01,0.00013996,2]
[404167286,1769894765037,-10000.01,0.00013996,2]
[404167287,1769894765161,-10000.01,0.00013996,2]
[404167288,1769894765285,-10000.01,0.00013996,2]
[404167289,1769894765608,-4078.9294294,0.00013996,2]
[404167290,1769894765633,-1842.1511412,0.00013996,2]
[404167291,1769894778947,-5000.0,0.00013562,2]
[404167292,1769894778984,-0.01,0.00013699,2]
[404167293,1769894783240,-499.99,0.00013699,2]
[404167294,1769894783270,-500.0,0.00013699,2]
[404167295,1769894783301,-500.0,0.00013699,2]
[404167296,1769894783370,-7000.03,0.00013996,2]
[404167297,1769894787135,-10000.01,0.00013755,2]
[404167298,1769894787269,-2739.08103106,0.00013755,2]
[404167299,1769894787295,-4521.84793788,0.00013755,2]
[404167300,1769894800185,-5000.0,0.00013856,2]
[404167301,1769894807115,-458.96492981,0.00013996,2]
[404167309,1769894827944,-462.44559537,0.00013273,2]
[404167310,1769894827983,-500.0,0.00013699,2]
[404167311,1769894828015,-500.0,0.00013699,2]
[404167312,1769894828049,-2075.11880926,0.00013856,2]
[404167313,1769894828130,-525.37478737,0.00013699,2]
[404167314,1769894828141,-2399.50640337,0.00013856,2]
[404167315,1769894834338,-500.0,0.00013273,2]
[404167316,1769894834370,-308.75508522,0.00013699,2]
[404167317,1769894834401,-301.32592677,0.00013699,2]
[404167318,1769894834433,-1000.0,0.00013821,2]
[404167319,1769894834466,-525.37478737,0.00013856,2]
[404167320,1769894834639,500.36944659,0.00013699,2]
[404167321,1769894836283,207.96872306,0.00013755,2]
[404167322,1769894839114,500.0,0.00013699,2]
[404167323,1769894839807,534.64796897,0.00013821,2]
[404167324,1769894839860,500.0,0.00013273,2]
[404167325,1769894840144,302.08825533,0.00013273,2]
[404167326,1769894840237,500.0,0.00013273,2]
[404167327,1769894840336,1000.0,0.00013821,2]
[404167328,1769894840695,684.02400733,0.00013996,2]
[404167329,1769894840720,4315.97599267,0.00013996,2]
[404167330,1769894842217,500.0,0.00013273,2]
[404167331,1769894842279,500.0,0.00013821,2]
[404167332,1769894842359,500.0,0.00013699,2]
[404167333,1769894842561,500.0,0.00013699,2]
[404167334,1769894842887,500.0,0.00013699,2]
[404167335,1769894843008,500.0,0.00013273,2]
[404167336,1769894843057,1000.0,0.00013821,2]
[404167337,1769894843231,300.0,0.00013673,2]
[404167338,1769894843339,500.0,0.00013273,2]
[404167339,1769894843393,275.22020058,0.00013821,2]
[404167340,1769894843542,500.0,0.00013273,2]
[404167341,1769894843590,108.81380675,0.00013821,2]
[404167342,1769894871567,10000.01,0.00012,5]
[404167343,1769894871591,2317.92601078,0.00012,5]
[404167344,1769894894145,-488.50652582,0.00013273,2]
[404167345,1769894894201,-500.0,0.00013273,2]
[404167346,1769894894233,-3022.99694836,0.00013682,2]
[404167347,1769894894395,-1977.00305164,0.00013682,2]
[404167348,1769894894426,-500.0,0.00013699,2]
[404167349,1769894894455,-500.0,0.00013699,2]
[404167350,1769894894485,-603.02448987,0.00013699,2]
[404167351,1769894894517,-500.0,0.00013699,2]
[404167352,1769894894551,-891.18619325,0.00013821,2]
[404167353,1769894903770,-1000.0,0.00013821,2]
[404167354,1769894903803,-2222.02467002,0.00013996,2]
[404167355,1769894903835,-231.70516829,0.00014121,2]
[404167356,1769894903864,-600.0,0.00014221,2]
[404167357,1769894903895,-300.0,0.00014246,2]
[404167358,1769894903924,-616.84289354,0.00014247,2]
[404167359,1769894904124,-58.8645363,0.00014247,2]
[404167360,1769894904154,-474.23438198,0.00014247,2]
[404167361,1769894904184,-1000.0,0.00014247,2]
[404167362,1769894904215,-1000.0,0.00014247,2]
[404167363,1769894904245,-1000.0,0.00014247,2]
[404167364,1769894904275,-500.89619199,0.00014247,2]
[404167365,1769894904309,-932.01977946,0.00014247,2]
[404167367,1769894910956,-5000.0,0.00014104,2]
[404167368,1769894911145,-67.98022054,0.00014247,2]
[404167369,1769894911175,-500.0,0.00014247,2]
[404167370,1769894911205,-1000.0,0.00014247,2]
[404167371,1769894911233,-1000.0,0.00014247,2]
[404167372,1769894911262,-500.0,0.00014368,2]
[404167373,1769894911292,-1423.93375556,0.00014368,2]
[404167374,1769894914749,-1607.98000005,0.00014368,2]
[404167375,1769894914778,-500.0,0.00014368,2]
[404167376,1769894914810,-1500.0,0.00014368,2]
[404167377,1769894914840,-1004.79261489,0.00014368,2]
[404167378,1769894914874,-300.0,0.00014653,2]
[404167379,1769894915073,-300.0,0.00014653,2]
[404167380,1769894915110,-300.0,0.00014653,2]
[404167381,1769894915143,-300.0,0.00014653,2]
[404167382,1769894915176,-300.0,0.00014653,2]
[404167383,1769894915208,-300.0,0.00014653,2]
[404167384,1769894915241,-300.0,0.00014653,2]
[404167385,1769894915273,-300.0,0.00014653,2]
[404167386,1769894915304,-300.0,0.00014653,2]
[404167387,1769894915336,-300.0,0.00014653,2]
[404167388,1769894915368,-300.0,0.00014653,2]
[404167389,1769894915401,-300.0,0.00014653,2]
[404167390,1769894915433,-300.0,0.00014653,2]
[404167391,1769894915465,-300.0,0.00014653,2]
[404167392,1769894915498,-300.0,0.00014653,2]
[404167393,1769894915530,-700.01,0.00014768,2]
[404167394,1769894918703,3586.0,0.00037378,120]
[404167395,1769894918738,-199.99,0.00014768,2]
[404167396,1769894918770,-1501.79642948,0.00014795,2]
[404167397,1769894918801,-1500.0,0.00014795,2]
[404167398,1769894918833,-1500.0,0.00014795,2]
[404167399,1769894925196,-4085.29813735,0.000135,2]
[404167400,1769894925341,-3789.85,0.0001369,2]
[404167401,1769894925371,-920.31,0.00014795,2]
[404167402,1769894928447,-579.69,0.00014795,2]
[404167403,1769894928478,-2000.0,0.00014916,2]
[404167404,1769894931555,4840.63,0.00014647,2]
[404167405,1769894932868,-159.37,0.00014647,2]
[404167406,1769894944011,485.34330805,0.00013273,2]
[404167407,1769894949598,500.33960277,0.00013699,2]
[404167408,1769894951107,-600.0,0.00014945,2]
[404167409,1769894951128,-300.0,0.00014999,2]
[404167410,1769894951150,-983.61655972,0.00015,2]
[404167411,1769894955540,500.0,0.00013699,2]
[404167412,1769894955579,1000.0,0.00014247,2]
[404167413,1769894959622,500.0,0.00013699,2]
[404167414,1769894959672,1000.0,0.00014247,2]
[404167415,1769894960046,500.0,0.00013273,2]
[404167416,1769894960095,500.0,0.00013821,2]
[404167417,1769894962213,500.0,0.00013699,2]
[404167418,1769894962271,500.0,0.00014247,2]
[404167429,1769895005203,500.0,0.00013273,2]
[404167430,1769895005238,1500.0,0.00014368,2]
[404167431,1769895005304,1000.0,0.00013821,2]
[404167432,1769895005471,500.0,0.00013699,2]
[404167433,1769895005506,1000.0,0.00014247,2]
[404167434,1769895005811,501.93006265,0.00013699,2]
[404167435,1769895008576,151.0,0.00037377,120]
[404167441,1769895009243,156.587,0.00037377,120]
[404167452,1769895009903,162.380719,0.00037377,120]
[404167458,1769895010417,168.3888056,0.00037377,120]
[404167465,1769895011019,174.61919141,0.00037377,120]
[404167468,1769895011235,500.0,0.00014794,2]
[404167472,1769895011634,181.08010149,0.00037377,120]
[404167475,1769895012234,187.78006525,0.00037377,120]
[404167480,1769895012721,500.0,0.00013699,2]
[404167482,1769895012780,1000.0,0.00014247,2]
[404167484,1769895012848,194.72792766,0.00037377,120]
[404167489,1769895013483,201.93286099,0.00037377,120]
[404167496,1769895014123,209.40437684,0.00037377,120]
[404167501,1769895014741,217.15233878,0.00037377,120]
[404167504,1769895015365,225.18697532,0.00037377,120]
[404167509,1769895015985,233.51889341,0.00037377,120]
[404167515,1769895016627,242.15909246,0.00037377,120]
[404167519,1769895017237,251.11897888,0.00037377,120]
[404167525,1769895017855,260.4103811,0.00037377,120]
[404167532,1769895018468,270.0455652,0.00037377,120]
[404167540,1769895019083,280.03725112,0.00037377,120]
[404167548,1769895019710,290.39862941,0.00037377,120]
[404167555,1769895020389,290.39862941,0.00037377,120]
[404167647,1769895032065,-262.87439204,0.00014795,2]
[404167686,1769895035861,221.3349727,0.00013896,2]
[404167722,1769895038131,-237.12560796,0.00014795,2]
[404167724,1769895038142,-500.0,0.00014795,2]
[404167726,1769895038152,-5000.0,0.0001485,2]
[404167728,1769895038162,-500.0,0.00014916,2]
[404167730,1769895038172,-300.0,0.00014999,2]
[404167732,1769895038181,-45723.52928928,0.00015,2]
[404167734,1769895038191,-17915.35807205,0.00015,2]
[404167736,1769895038200,-300.0,0.00015214,2]
[404167738,1769895038209,-300.0,0.00015214,2]
[404167740,1769895038218,-300.0,0.00015214,2]
[404167742,1769895038227,-300.0,0.00015214,2]
[404167745,1769895038236,-300.0,0.00015214,2]
[404167746,1769895038248,-300.0,0.00015214,2]
[404167749,1769895038258,-300.0,0.00015214,2]
[404167750,1769895038268,-300.0,0.00015214,2]
[404167753,1769895038278,-300.0,0.00015214,2]
[404167755,1769895038290,-300.0,0.00015214,2]
[404167757,1769895038300,-300.0,0.00015214,2]
[404167759,1769895038309,-300.0,0.00015214,2]
[404167761,1769895038319,-300.0,0.00015214,2]
[404167763,1769895038329,-300.0,0.00015214,2]
[404167765,1769895038339,-300.0,0.00015214,2]
[404167767,1769895038350,-944.552911,0.00015275,2]
[404167769,1769895038360,-1000.0,0.00015344,2]
[404167771,1769895038370,-9598.4739717,0.00015364,2]
[404167773,1769895038379,-273.41209858,0.00016121,2]
[404167775,1769895038388,-420.0,0.00016416,2]
[404167777,1769895038398,-720.0,0.0001644,2]
[404167779,1769895038411,-9598.4739717,0.00016817,2]
[404167781,1769895038422,-587.0,0.00017966,2]
[404167783,1769895038431,-264.70038645,0.00017999,2]
[404167785,1769895038440,-248.11229439,0.00017999,2]
[404167787,1769895038451,-17761.18142603,0.00018,2]
[404167789,1769895038461,-136267.11476442,0.00018,2]
[404167791,1769895038470,-864.0,0.00018083,2]
[404167793,1769895038479,-315.11902888,0.00018121,2]
[404167796,1769895038489,-186.52448351,0.00018181,2]
[404167798,1769895038498,-9598.4739717,0.0001827,2]
[404167800,1769895038508,-303.10001603,0.000189,2]
[404167802,1769895038517,-357.7681017,0.00019,20]
[404167803,1769895038526,-13146.30910608,0.00019,2]
[404167805,1769895038536,-303.10001603,0.00019089,2]
[404167807,1769895038545,-151.0,0.000191,2]
[404167809,1769895038554,-166137.62855075,0.000192,3]
[404167811,1769895038563,-687.13,0.000192,2]
[404167813,1769895038576,-157.61,0.000192,2]
[404167815,1769895038585,-303.10001603,0.00019278,2]
[404167817,1769895038595,-303.10001603,0.00019467,2]
[404167819,1769895038604,-151.0,0.000196,2]
[404167821,1769895038613,-303.10001589,0.00019656,2]
[404167824,1769895038623,-823.0,0.00019663,2]
[404167825,1769895038632,-1000.0,0.00019892,2]
[404167827,1769895038643,-375.74929237,0.0002,30]
[404167829,1769895038652,-14726.28615304,0.0002,2]
[404167831,1769895038664,-40778.82840029,0.0002,2]
[404167833,1769895038674,-4312.71333601,0.0002,7]
[404167835,1769895038683,-6434.02130439,0.0002,7]
[404167838,1769895038693,-3006.22,0.0002,2]
[404167840,1769895038702,-356.82595917,0.00020121,2]
[404167842,1769895038713,-151.0,0.000202,3]
[404167844,1769895038722,-250.0,0.00020445,2]
[404167846,1769895038731,-151.0,0.000207,3]
[404167847,1769895038740,-256.94154564,0.000209,2]
[404167849,1769895038750,-9357.66791339,0.00021,7]
[404167851,1769895038760,-168.0,0.00021152,2]
[404167853,1769895038769,-168.0,0.0002124,2]
[404167856,1769895038779,-151.0,0.000213,4]
[404167857,1769895038788,-168.0,0.0002132,2]
[404167859,1769895038798,-1152.0,0.0002152,2]
[404167861,1769895038807,-151.0,0.000218,4]
[404167863,1769895038816,-168.0,0.00021836,2]
[404167866,1769895038827,-1000.0,0.00021881,10]
[404167868,1769895038836,-244.0,0.00021881,10]
[404167870,1769895038846,-454.63175159,0.00022,2]
[404167872,1769895038855,-168.0,0.00022055,2]
[404167874,1769895038864,-398.53288946,0.00022121,2]
[404167876,1769895038874,-151.0,0.000224,8]
[404167878,1769895038884,-168.0,0.00022873,2]
[404167880,1769895038894,-151.0,0.000229,5]
[404167882,1769895038903,-944.552911,0.00022913,2]
[404167884,1769895038913,-197.0,0.00022959,8]
[404167886,1769895038922,-160.0,0.00023,3]
[404167888,1769895038932,-168.0,0.00023032,2]
[404167890,1769895038941,-687.13,0.000231,14]
[404167892,1769895038950,-7805.98,0.00023202,3]
[404167894,1769895038960,-168.0,0.00023263,2]
[404167895,1769895038969,-5542.0,0.00023267,2]
[404167898,1769895038979,-210.4276814,0.00023452,2]
[404167900,1769895038988,-1410.16844331,0.000235,2]
[404167902,1769895038997,-664801.6255383,0.00023502,2]
[404168064,1769895040527,-17033.26836802,0.00023502,2]
[404168083,1769895040705,5000.0,0.00014795,2]
[404168404,1769895044658,-256.2,0.00023502,2]
[404168406,1769895044671,-495.39470096,0.00023502,2]
[404168407,1769895044683,-470.31115789,0.00023502,2]
[404168408,1769895044694,-6069.33991248,0.00023502,2]
[404168409,1769895044706,-12850.14562991,0.00023502,2]
[404168410,1769895044716,-672.80841133,0.00023502,2]
[404168411,1769895044728,-16213.92276521,0.00023502,2]
[404168412,1769895044739,-7076.86593956,0.00023502,2]
[404168453,1769895046376,-859.46617756,0.00023502,2]
[404168481,1769895063675,537.1943014,0.00013273,2]
[404168482,1769895063704,500.0,0.00013273,2]
[404168483,1769895063731,268.71089634,0.00013699,2]
[404168484,1769895063755,231.28910366,0.00013699,2]
[404168485,1769895063784,1000.0,0.00013821,2]
[404168486,1769895063876,1504.6841927,0.00014368,2]
[404168487,1769895063949,42.70173094,0.00013273,2]
[404168488,1769895063973,175.8555433,0.00013273,2]
[404168493,1769895065760,500.0,0.00013273,2]
[404168494,1769895065807,1000.64519608,0.00013821,2]
[404168495,1769895066895,500.0,0.00013273,2]
[404168497,1769895066956,1000.0,0.00013821,2]
[404168498,1769895066984,500.0,0.00013273,2]
[404168499,1769895067020,1000.0,0.00013821,2]
[404168500,1769895067137,1500.0,0.00014368,2]
[404168502,1769895067508,500.0,0.00013273,2]
[404168503,1769895067563,500.0,0.00013699,2]
[404168504,1769895067610,1500.0,0.00014368,2]
[404168505,1769895067662,1000.0,0.00013821,2]
[404168507,1769895068148,323.50926062,0.00013699,2]
[404168508,1769895068172,176.49073938,0.00013699,2]
[404168511,1769895068630,500.0,0.00013273,2]
[404168512,1769895068683,1000.0,0.00013821,2]
[404168513,1769895068737,1500.0,0.00014368,2]
[404168561,1769895079546,503.70808855,0.00013273,2]
[404168573,1769895082874,175.84126355,0.00013273,2]
[404168575,1769895084024,500.0,0.00013273,2]
[404168576,1769895084145,500.0,0.00013273,2]
[404168578,1769895084390,500.0,0.00013273,2]
[404168618,1769895141149,-315.09066328,0.00013273,2]
[404168623,1769895144363,-174.89590963,0.00013273,2]
[404168626,1769895147586,-10.01342709,0.00013273,2]
[404168627,1769895147610,-251.86984637,0.00013273,2]
[404168634,1769895156367,200.0,0.00013262,2]
[404168643,1769895185995,-74.90166827,0.00013273,2]
[404168644,1769895186015,-184.47360422,0.00013273,2]
[404168645,1769895188071,-216.64971271,0.00013273,2]
[404168646,1769895199847,476.0249852,0.00013262,2]
[404168647,1769895259610,5000.0,0.00013273,2]
[404168676,1769895281899,5000.0,0.00013273,2]
[404168690,1769895304219,0.01,0.00013273,2]
[404168691,1769895304245,4999.99,0.00013273,2]
[404168692,1769895305449,170.0,0.00023623,120]
[404168702,1769895317287,151.0,0.00037356,119]
[404168704,1769895317943,156.587,0.00037356,119]
[404168706,1769895318618,162.380719,0.00037356,118]
[404168708,1769895319289,168.3888056,0.00037356,73]
[404168710,1769895319933,174.61919141,0.00037356,73]
[404168713,1769895320556,181.08010149,0.00037356,90]
[404168715,1769895321190,187.78006525,0.00037356,30]
[404168717,1769895321786,194.72792766,0.00037356,120]
[404168724,1769895325789,209.40437684,0.00037356,20]
[404168726,1769895326467,217.15233878,0.00037356,20]
[404168729,1769895327039,225.18697532,0.00037356,20]
[404168731,1769895327499,5000.0,0.00013273,2]
[404168732,1769895327724,233.51889341,0.00037356,20]
[404168734,1769895328398,242.15909246,0.00037356,20]
[404168738,1769895330487,165.0,0.00023893,120]
[404168741,1769895331759,165.0,0.00025088,120]
[404168742,1769895331892,260.4103811,0.00037356,20]
[404168744,1769895332528,270.0455652,0.00037356,20]
[404168746,1769895333183,270.0455652,0.00037356,20]
[404168787,1769895441481,0.02,0.00013046,2]
[404168788,1769895441504,10000.01,0.00013046,2]
[404168789,1769895441529,10000.01,0.00013046,2]
[404168790,1769895441553,10000.01,0.00013046,2]
[404168791,1769895441576,10000.01,0.00013046,2]
[404168792,1769895441599,8360.9873782,0.00013046,2]
[404168793,1769895482815,300.0,0.00013272,2]
[404168795,1769895543022,300.0,0.00013272,2]
[404168796,1769895543227,300.0,0.00013272,2]
[404168797,1769895545327,739.0226218,0.00013273,2]
[404168798,1769895545354,4260.9773782,0.00013273,2]
[404168799,1769895567738,5000.0,0.00013273,2]
[404168800,1769895590008,739.0326218,0.00013273,2]
[404168801,1769895590035,4260.9673782,0.00013273,2]
[404168802,1769895601537,276.0,0.00013272,2]
[404168803,1769895602342,300.0,0.00013272,2]
[404168804,1769895602798,300.0,0.00013272,2]
[404168805,1769895603825,1200.0,0.00013272,2]
[404168806,1769895612806,3663.0426218,0.00013273,2]
[404168807,1769895612920,1336.9573782,0.00013273,2]
[404168808,1769895635252,5000.0,0.000131,2]
[404168809,1769895646941,-197.0,0.00022932,8]
[404168810,1769895647028,-1000.0,0.00023093,10]
[404168811,1769895647167,-244.0,0.00023093,10]
[404168812,1769895647249,-767.18,0.00023392,10]
[404168813,1769895647343,-151.0,0.000234,7]
[404168814,1769895647470,-151.0,0.000234,9]
[404168815,1769895647621,-151.0,0.000234,10]
[404168816,1769895647724,-151.0,0.000234,8]
[404168817,1769895647840,-151.0,0.000234,9]
[404168818,1769895647949,-151.0,0.000234,7]
[404168819,1769895648046,-151.0,0.000234,9]
[404168820,1769895648186,-157.61,0.000235,7]
[404168821,1769895648306,-594.72,0.000236,14]
[404168822,1769895648433,-4303.89887682,0.000237,14]
[404168823,1769895648558,-44460.75777165,0.00024,7]
[404168824,1769895648653,-160.0,0.00024,7]
[404168825,1769895648752,-1041.66666667,0.00024,7]
[404168826,1769895648838,-151.0,0.000243,8]
[404168827,1769895648902,-151.0,0.000243,9]
[404168828,1769895648965,-151.0,0.000243,7]
[404168829,1769895649022,-151.0,0.000243,10]
[404168830,1769895649078,-151.0,0.000243,7]
[404168831,1769895649131,-169.17,0.000244,7]
[404168832,1769895649187,-500.0,0.00025,15]
[404168833,1769895649255,-1000.0,0.00025402,10]
[404168834,1769895649313,-492.0,0.00025402,10]
[404168835,1769895649371,-4210.938487,0.00025469,30]
[404168836,1769895649426,-160.0,0.00025671,17]
[404168837,1769895649487,-28003.59479617,0.00026,30]
[404168838,1769895649544,-1041.66666667,0.00026,30]
[404168839,1769895649596,-200.0,0.0002654,14]
[404168840,1769895649652,-594.72,0.000268,14]
[404168841,1769895649816,-1203.125282,0.00027507,30]
[404168842,1769895649865,-900.0,0.00027805,7]
[404168843,1769895649917,-500.0,0.0002784,7]
[404168844,1769895649966,-600.0,0.00027907,7]
[404168845,1769895650025,-1000.0,0.00027942,30]
[404168846,1769895650076,-791.0,0.00027942,30]
[404168847,1769895650124,-600.0,0.00027947,7]
[404168848,1769895650171,-900.0,0.0002798,7]
[404168849,1769895650213,-500.0,0.00028036,7]
[404168850,1769895650255,-500.0,0.00028125,7]
[404168851,1769895650299,-500.0,0.00028135,7]
[404168852,1769895650341,-500.0,0.00028157,7]
[404168853,1769895650386,-900.0,0.00028206,7]
[404168854,1769895650429,-160.0,0.0002823,7]
[404168855,1769895650472,-600.0,0.00028236,7]
[404168856,1769895650517,-600.0,0.00028246,7]
[404168857,1769895650560,-900.0,0.00028261,7]
[404168858,1769895650600,-273.8462392,0.00028278,14]
[404168859,1769895650641,-500.0,0.00028293,7]
[404168860,1769895650682,-900.0,0.00028313,7]
[404168861,1769895650722,-500.0,0.00028327,7]
[404168862,1769895650763,-500.0,0.00028335,7]
[404168863,1769895650812,-600.0,0.00028355,7]
[404168864,1769895650862,-175.0,0.00028411,29]
[404168865,1769895650901,-88184.16423315,0.000285,7]
[404168866,1769895650943,-160.0,0.000285,7]
[404168867,1769895650984,-500.0,0.00028715,7]
[404168868,1769895651024,-600.0,0.00028734,7]
[404168869,1769895651067,-900.0,0.00028762,7]
[404168870,1769895651108,-500.0,0.00028782,7]
[404168871,1769895651147,-500.0,0.00028856,7]
[404168872,1769895651187,-600.0,0.00028905,7]
[404168873,1769895651225,-600.0,0.00028931,7]
[404168874,1769895651262,-600.0,0.00029045,7]
[404168875,1769895651299,-900.0,0.00029062,7]
[404168876,1769895651336,-900.0,0.00029072,7]
[404168877,1769895651371,-500.0,0.00029093,7]
[404168878,1769895651405,-900.0,0.00029164,7]
[404168879,1769895651441,-500.0,0.00029209,7]
[404168880,1769895651477,-600.0,0.0002922,7]